bitfinex/quotes_BTCUSD_20251110
["timestamp","ask_amount","ask_price","bid_price","bid_amount"]
[1762794203368,0.28941156,105380.0,105370.0,0.605332]
[1762794203568,0.28841156,105380.0,105370.0,0.605332]
[1762794203790,0.29041156,105380.0,105370.0,0.605332]
[1762794203968,0.28941156,105380.0,105370.0,0.605332]
[1762794204177,0.28841156,105380.0,105370.0,0.605332]
[1762794204391,0.28941156,105380.0,105370.0,0.41552466]
[1762794204595,0.29041156,105380.0,105370.0,0.41552466]
[1762794205081,0.29041156,105380.0,105370.0,0.605332]
[1762794205642,0.29041156,105380.0,105370.0,0.41552466]
[1762794206037,0.18980734,105370.0,105360.0,0.66811536]
[1762794206239,0.22753725,105370.0,105360.0,1.31815196]
[1762794206440,0.22753725,105370.0,105360.0,1.33332196]
[1762794206645,0.03772991,105370.0,105360.0,1.33332196]
[1762794206890,0.03772991,105370.0,105360.0,1.35291196]
[1762794207249,0.22753725,105370.0,105360.0,1.35291196]
[1762794207449,0.22753725,105370.0,105360.0,1.33332196]
[1762794208042,0.22753725,105370.0,105360.0,0.68328536]
[1762794208249,0.25445725,105370.0,105360.0,0.99313366]
[1762794208449,0.27885725,105370.0,105360.0,0.4705183]
[1762794208677,0.27885725,105370.0,105360.0,0.66034366]
[1762794208881,0.28774409,105370.0,105360.0,0.66034366]
[1762794209708,0.28774409,105370.0,105360.0,0.67013366]
[1762794210127,0.28774409,105370.0,105360.0,0.66034366]
[1762794210380,0.28774409,105370.0,105360.0,0.4705183]
[1762794210612,0.28774409,105370.0,105360.0,0.66034366]
[1762794210832,0.28774409,105370.0,105350.0,0.33858921]
[1762794210833,0.07793675,105370.0,105350.0,0.47459191]
[1762794211014,0.26114536,105360.0,105350.0,0.98336167]
[1762794211230,0.01772991,105360.0,105350.0,1.00295167]
[1762794211387,0.01772991,105360.0,105350.0,1.34313997]
[1762794211851,0.01772991,105360.0,105350.0,1.01812167]
[1762794212435,0.01772991,105360.0,105350.0,0.99853167]
[1762794212603,0.01772991,105360.0,105350.0,1.01912167]
[1762794212799,0.01772991,105360.0,105350.0,1.34413997]
[1762794213220,0.01772991,105360.0,105350.0,1.4119778]
[1762794213853,0.01772991,105360.0,105350.0,1.34413997]
[1762794214076,0.01772991,105360.0,105350.0,1.01912167]
[1762794214230,0.01772991,105360.0,105350.0,1.0869595]
[1762794214456,0.25887527,105360.0,105350.0,1.0531995]
[1762794214716,0.25887527,105360.0,105350.0,0.98536167]
[1762794214717,0.25447527,105360.0,105350.0,0.98536167]
[1762794214925,0.23674536,105360.0,105350.0,0.98536167]
[1762794215171,0.2545317,105360.0,105350.0,0.98536167]
[1762794215397,0.2545317,105360.0,105350.0,0.66034337]
[1762794215672,0.2545317,105360.0,105350.0,0.98536167]
[1762794215878,0.2789317,105360.0,105350.0,0.4725183]
[1762794216677,0.2789317,105360.0,105350.0,0.51686167]
[1762794217002,0.2789317,105360.0,105350.0,0.3270183]
[1762794217204,0.2545317,105360.0,105350.0,0.51686167]
[1762794217406,0.23674536,105360.0,105350.0,0.51686167]
[1762794217781,0.0647038,105360.0,105350.0,0.51686167]
[1762794217929,0.23674536,105360.0,105350.0,0.51686167]
[1762794218131,0.07132,105360.0,105350.0,0.51686167]
[1762794218335,0.2266604,105380.0,105370.0,0.18980734]
[1762794218610,0.07465104,105380.0,105370.0,0.52461564]
[1762794218819,0.08980104,105380.0,105370.0,0.52461564]
[1762794219604,0.27959037,105380.0,105370.0,0.52461564]
[1762794219861,0.08980104,105380.0,105370.0,0.52461564]
[1762794220279,0.06540104,105380.0,105370.0,0.52461564]
[1762794220482,0.06640104,105380.0,105370.0,0.52461564]
[1762794221125,0.09080104,105380.0,105370.0,0.52461564]
[1762794221374,0.07301881,105380.0,105370.0,0.3348083]
[1762794221581,0.26280814,105380.0,105370.0,0.51482564]
[1762794222035,0.03346881,105380.0,105370.0,0.3401883]
[1762794222240,0.26280814,105380.0,105360.0,0.68297514]
[1762794222521,0.24765814,105380.0,105370.0,0.3250183]
[1762794222842,0.26280814,105380.0,105370.0,0.3250183]
[1762794223244,0.26180814,105380.0,105370.0,0.3250183]
[1762794223448,0.26180814,105380.0,105370.0,0.51482564]
[1762794223669,0.26280814,105380.0,105370.0,0.51482564]
[1762794223872,0.07201881,105380.0,105370.0,0.51482564]
[1762794224128,0.24598962,105370.0,105350.0,0.06883783]
[1762794224300,0.24598962,105370.0,105350.0,0.001]
[1762794224301,0.58080187,105360.0,105350.0,0.001]
[1762794224520,0.60394564,105360.0,105350.0,0.001]
[1762794225249,0.60394952,105360.0,105350.0,0.001]
[1762794227291,0.58616366,105360.0,105350.0,0.001]
[1762794228380,0.26114536,105360.0,105350.0,0.001]
[1762794228584,0.58616366,105360.0,105350.0,0.001]
[1762794232917,0.58633034,105360.0,105350.0,0.001]
[1762794233142,0.26114536,105360.0,105350.0,0.001]
[1762794235561,0.02,105360.0,105350.0,0.03653]
[1762794235726,0.20157734,105370.0,105350.0,0.62247471]
[1762794235891,0.02,105360.0,105350.0,0.29728973]
[1762794236101,0.24571734,105370.0,105360.0,0.18982536]
[1762794236340,0.03177,105370.0,105360.0,0.51501034]
[1762794237108,0.04828,105370.0,105360.0,0.51501034]
[1762794237323,0.02828,105370.0,105360.0,0.51501034]
[1762794237531,0.2558876,105380.0,105370.0,0.18980734]
[1762794237736,0.2723976,105380.0,105370.0,0.18980734]
[1762794239571,0.07311881,105380.0,105370.0,0.51499232]
[1762794239795,0.26290814,105380.0,105370.0,0.32518498]
[1762794241307,0.26290814,105380.0,105370.0,0.51499232]
[1762794241658,0.26290814,105380.0,105370.0,0.32518498]
[1762794242335,0.18980734,105370.0,105360.0,0.18982536]
[1762794242532,0.24639814,105380.0,105360.0,0.55112034]
[1762794242709,0.24639814,105380.0,105370.0,0.51499232]
[1762794242890,0.24639814,105380.0,105370.0,0.32518498]
[1762794243098,0.26290814,105380.0,105370.0,0.32518498]
[1762794244184,0.18980734,105370.0,105360.0,0.33497498]
[1762794244416,0.23790734,105370.0,105360.0,0.52480034]
[1762794244673,0.07224,105370.0,105360.0,0.52480034]
[1762794244934,0.02,105370.0,105360.0,0.54132034]
[1762794245147,0.02047881,105380.0,105370.0,0.51280734]
[1762794245377,0.00047881,105380.0,105370.0,0.96460868]
[1762794246470,0.00047881,105380.0,105370.0,0.96560868]
[1762794250343,0.00047881,105380.0,105370.0,0.6208337]
[1762794250579,0.00047881,105380.0,105370.0,0.94601868]
[1762794250804,0.00047881,105380.0,105370.0,0.96560868]
[1762794254905,0.00047881,105380.0,105370.0,1.11110868]
[1762794257200,0.00047881,105380.0,105370.0,0.96560868]
[1762794257714,0.00047881,105380.0,105370.0,1.03344651]
[1762794258368,0.00047881,105380.0,105370.0,1.03244651]
[1762794258586,0.00047881,105380.0,105370.0,1.03544651]
[1762794260627,0.00047881,105380.0,105370.0,1.18094651]
[1762794263452,0.21088676,105410.0,105390.0,0.00948856]
[1762794263453,0.02,105410.0,105390.0,0.00948856]
[1762794263645,0.02014359,105410.0,105400.0,0.63179466]
[1762794263925,0.03236359,105410.0,105400.0,0.63179466]
[1762794265906,0.03236359,105410.0,105400.0,0.70445449]
[1762794266383,0.03236359,105410.0,105400.0,0.63279466]
[1762794267231,0.02014359,105410.0,105400.0,0.63279466]
[1762794267365,0.02014359,105410.0,105400.0,0.97538466]
[1762794267366,0.00014359,105410.0,105400.0,0.97538466]
[1762794267573,0.00014359,105410.0,105400.0,1.04339254]
[1762794269928,0.00014359,105410.0,105400.0,1.11310985]
[1762794270340,0.00014359,105410.0,105400.0,1.04510197]
[1762794272233,0.00014359,105410.0,105400.0,1.19060197]
[1762794277100,0.00014359,105410.0,105400.0,1.04510197]
[1762794278725,0.00014359,105410.0,105400.0,1.04410197]
[1762794279206,0.00014359,105410.0,105400.0,1.04810197]
[1762794280173,0.00014359,105410.0,105400.0,0.72291699]
[1762794280356,0.00014359,105410.0,105400.0,1.04810197]
[1762794285595,0.00014359,105410.0,105400.0,1.37328695]
[1762794285800,0.00014359,105410.0,105400.0,1.44129483]
[1762794288498,0.00014359,105410.0,105400.0,1.47747711]
[1762794288700,0.00014359,105410.0,105400.0,1.40946923]
[1762794289392,0.00014359,105410.0,105400.0,1.49471957]
[1762794292054,0.22474177,105440.0,105430.0,0.18969932]
[1762794292252,0.25833522,105440.0,105430.0,0.5148843]
[1762794292476,0.07489249,105440.0,105430.0,0.5148843]
[1762794292611,0.05489249,105440.0,105430.0,0.5148843]
[1762794292812,0.07753249,105440.0,105430.0,0.18969932]
[1762794293018,0.07753249,105440.0,105430.0,0.51421389]
[1762794293243,0.06865345,105440.0,105430.0,0.19069932]
[1762794293479,0.25833478,105440.0,105430.0,0.51521389]
[1762794293683,0.26721758,105440.0,105430.0,0.51521389]
[1762794294219,0.25833478,105440.0,105430.0,0.51521389]
[1762794294526,0.25833478,105440.0,105430.0,0.001]
[1762794294737,0.09753671,105440.0,105430.0,0.51521389]
[1762794294938,0.28721804,105440.0,105430.0,0.51521389]
[1762794295303,0.27833478,105440.0,105430.0,0.51521389]
[1762794296744,0.27833478,105440.0,105430.0,0.19069932]
[1762794296985,0.27833478,105440.0,105430.0,0.51521389]
[1762794299435,0.27833478,105440.0,105430.0,0.001]
[1762794299683,0.27833478,105440.0,105430.0,0.51521389]
[1762794299889,0.27833478,105440.0,105430.0,0.001]
[1762794300097,0.27833478,105440.0,105430.0,0.32551457]
[1762794301151,0.31886707,105440.0,105430.0,0.001]
[1762794301360,0.28722203,105440.0,105430.0,0.32551457]
[1762794301784,0.27833478,105440.0,105430.0,0.32551457]
[1762794302217,0.27833478,105440.0,105430.0,0.001]
[1762794302421,0.27833478,105440.0,105410.0,0.41274279]
[1762794302422,0.18971732,105420.0,105410.0,0.41277268]
[1762794302625,0.23749732,105420.0,105410.0,1.06028725]
[1762794302837,0.26065732,105420.0,105410.0,1.06028725]
[1762794303253,0.07094,105420.0,105410.0,0.73728725]
[1762794303429,0.07094,105420.0,105410.0,0.66923483]
[1762794304079,0.04778,105420.0,105410.0,0.73928725]
[1762794304284,0.26065732,105420.0,105410.0,0.41477268]
[1762794304485,0.07094,105420.0,105410.0,0.67123483]
[1762794304698,0.07094,105420.0,105410.0,0.73928725]
[1762794305333,0.26065732,105420.0,105410.0,0.73928906]
[1762794305748,0.07094,105420.0,105410.0,0.73928906]
[1762794305987,0.04778,105420.0,105410.0,0.73928906]
[1762794306402,0.26065732,105420.0,105410.0,0.73928906]
[1762794306606,0.07094,105420.0,105410.0,0.73928906]
[1762794306935,0.26065732,105420.0,105410.0,0.73928906]
[1762794307150,0.07094,105420.0,105410.0,0.73928906]
[1762794307330,0.26065732,105420.0,105410.0,0.21555242]
[1762794307561,0.07094,105420.0,105410.0,0.51624988]
[1762794307972,0.26065732,105420.0,105410.0,0.51624988]
[1762794308152,0.26065732,105420.0,105410.0,0.002]
[1762794308356,0.26065732,105420.0,105410.0,0.51624988]
[1762794308571,0.26065732,105420.0,105410.0,0.32651457]
[1762794309010,0.01149,105430.0,105420.0,0.18971732]
[1762794309226,0.07094,105430.0,105420.0,0.18971732]
[1762794309439,0.07094,105430.0,105420.0,0.93904282]
[1762794310051,0.03149,105430.0,105420.0,0.95566282]
[1762794310261,0.03149,105430.0,105420.0,1.02371524]
[1762794310690,0.03149,105430.0,105420.0,1.02471524]
[1762794311537,0.05465,105430.0,105420.0,1.02471524]
[1762794311958,0.07094,105430.0,105420.0,1.00809524]
[1762794313223,0.2221922,105440.0,105430.0,0.18969932]
[1762794313431,0.03251087,105440.0,105430.0,0.51421389]
[1762794313714,0.03251087,105440.0,105430.0,0.53083389]
[1762794314066,0.2221922,105440.0,105430.0,0.53083389]
[1762794314282,0.03251087,105440.0,105430.0,0.53083389]
[1762794314731,0.02029087,105440.0,105430.0,0.53083389]
[1762794315119,0.2377522,105440.0,105430.0,0.51421389]
[1762794315321,0.2609122,105440.0,105430.0,0.51421389]
[1762794315527,0.02029087,105440.0,105430.0,0.22590932]
[1762794315731,0.2214622,105440.0,105430.0,0.27437174]
[1762794315925,0.2214622,105440.0,105430.0,0.58226631]
[1762794315926,0.2609122,105440.0,105430.0,0.58226631]
[1762794316172,0.2509122,105440.0,105430.0,0.18969932]
[1762794316385,0.06123087,105440.0,105430.0,0.18969932]
[1762794316596,0.2509122,105440.0,105430.0,0.51421389]
[1762794316772,0.06123087,105440.0,105430.0,0.51421389]
[1762794317443,0.01029087,105440.0,105430.0,0.55042389]
[1762794317658,0.01029087,105440.0,105430.0,0.53083389]
[1762794319013,0.01029087,105440.0,105430.0,0.55042389]
[1762794319219,0.01029087,105440.0,105430.0,1.26599088]
[1762794319424,0.00029087,105440.0,105430.0,0.94147631]
[1762794319653,0.00029087,105440.0,105430.0,0.92188631]
[1762794320077,0.00029087,105440.0,105430.0,1.26599088]
[1762794320287,0.00029087,105440.0,105430.0,0.94147631]
[1762794320909,0.00029087,105440.0,105430.0,0.92188631]
[1762794321135,0.00029087,105440.0,105430.0,0.94147631]
[1762794321760,0.00029087,105440.0,105430.0,0.59737174]
[1762794321988,0.00029087,105440.0,105430.0,0.61696174]
[1762794322211,0.00029087,105440.0,105430.0,1.26922095]
[1762794322626,0.00029087,105440.0,105430.0,1.27622095]
[1762794323301,0.24914694,105450.0,105430.0,1.27622095]
[1762794323500,0.24914694,105450.0,105440.0,0.83871047]
[1762794323652,0.24806,105450.0,105440.0,0.92921683]
[1762794323857,0.26396469,105450.0,105440.0,0.92921683]
[1762794324223,0.26396469,105450.0,105440.0,0.93900683]
[1762794324370,0.26396469,105450.0,105440.0,0.61772233]
[1762794324812,0.07430135,105450.0,105440.0,0.61772233]
[1762794325013,0.02145135,105450.0,105440.0,0.9585669]
[1762794325224,0.02145135,105450.0,105440.0,0.9605669]
[1762794325429,0.02145135,105450.0,105440.0,0.9801569]
[1762794325782,0.00145135,105450.0,105440.0,1.37272389]
[1762794326007,0.00145135,105450.0,105440.0,1.39192181]
[1762794326200,6.453e-05,105470.0,105460.0,0.8386745]
[1762794326468,0.01225539,105470.0,105460.0,0.19943536]
[1762794326688,0.01272714,105470.0,105460.0,0.94220093]
[1762794326908,0.01272714,105470.0,105460.0,0.95853093]
[1762794327351,0.00062714,105470.0,105460.0,0.95853093]
[1762794327567,0.00062714,105470.0,105460.0,0.97812093]
[1762794327783,0.00062714,105470.0,105460.0,0.95853093]
[1762794329104,0.19025452,105470.0,105460.0,0.76888557]
[1762794329327,0.01272714,105470.0,105460.0,0.95853093]
[1762794329581,0.00062714,105470.0,105460.0,0.95853093]
[1762794329800,0.19025452,105470.0,105460.0,0.97812093]
[1762794330018,0.19025452,105470.0,105460.0,0.32909179]
[1762794330237,0.00062714,105470.0,105460.0,1.04916397]
[1762794330456,0.19025452,105470.0,105460.0,1.02957397]
[1762794331121,0.26298452,105470.0,105460.0,1.15874397]
[1762794331357,0.26298452,105470.0,105460.0,0.96909861]
[1762794331567,0.01272714,105470.0,105460.0,1.17507397]
[1762794331789,0.23880452,105470.0,105460.0,1.15874397]
[1762794332011,0.26298452,105470.0,105460.0,1.15473389]
[1762794332464,0.04917714,105470.0,105460.0,1.15473389]
[1762794332683,0.22235452,105470.0,105460.0,1.17031389]
[1762794332909,0.26298452,105470.0,105460.0,0.40941847]
[1762794333142,0.26298452,105470.0,105460.0,1.05844761]
[1762794333391,0.26298452,105470.0,105460.0,1.06422761]
[1762794333611,0.05335714,105470.0,105460.0,1.06422761]
[1762794333847,0.26298452,105470.0,105460.0,1.06422761]
[1762794334063,0.07335714,105470.0,105460.0,1.06422761]
[1762794334288,0.04917714,105470.0,105460.0,1.06422761]
[1762794334722,0.03272714,105470.0,105460.0,1.07980761]
[1762794334952,0.02062714,105470.0,105460.0,1.09538761]
[1762794335187,0.02062714,105470.0,105460.0,1.31000726]
[1762794335188,0.00062714,105470.0,105460.0,1.31000726]
[1762794335427,0.00062714,105470.0,105460.0,1.25882218]
[1762794335666,0.00062714,105470.0,105460.0,1.36490854]
[1762794335910,0.00062714,105470.0,105460.0,1.75591924]
[1762794336363,0.05335714,105470.0,105460.0,0.59269847]
[1762794336575,0.02062714,105470.0,105460.0,1.25730761]
[1762794337014,0.00062714,105470.0,105460.0,1.27288761]
[1762794337495,0.00062714,105470.0,105460.0,1.28188761]
[1762794337645,0.00062714,105470.0,105460.0,1.27788761]
[1762794337879,0.00062714,105470.0,105460.0,1.27288761]
[1762794338082,0.00062714,105470.0,105460.0,1.27588761]
[1762794338279,0.00062714,105470.0,105460.0,1.27988761]
[1762794339810,0.00062714,105470.0,105460.0,1.60440218]
[1762794340009,0.00062714,105470.0,105460.0,1.27988761]
[1762794341716,0.00062714,105470.0,105460.0,1.61389321]
[1762794341922,0.00062714,105470.0,105460.0,1.60440218]
[1762794342123,0.00062714,105470.0,105460.0,1.27988761]
[1762794342331,0.00062714,105470.0,105460.0,0.63085847]
[1762794342534,0.00062714,105470.0,105460.0,1.60440218]
[1762794342876,0.00062714,105470.0,105460.0,1.27988761]
[1762794343095,0.00062714,105470.0,105460.0,0.63085847]
[1762794343301,0.00062714,105470.0,105460.0,1.27988761]
[1762794346050,0.00062714,105470.0,105460.0,0.63085847]
[1762794346182,0.00062714,105470.0,105460.0,1.27988761]
[1762794346390,0.00062714,105470.0,105460.0,1.69490854]
[1762794346745,0.00062714,105470.0,105460.0,1.37039397]
[1762794347310,0.00062714,105470.0,105460.0,1.76291924]
[1762794347505,0.00062714,105470.0,105460.0,1.43840467]
[1762794348164,0.00062714,105470.0,105460.0,1.37039397]
[1762794349282,0.00062714,105470.0,105460.0,1.90841924]
[1762794349449,0.00062714,105470.0,105460.0,1.58390467]
[1762794350476,0.00062714,105470.0,105460.0,1.90841924]
[1762794351099,0.0002,105490.0,105480.0,0.1896094]
[1762794351302,0.00067861,105490.0,105480.0,0.9545149]
[1762794351517,0.00067861,105490.0,105480.0,0.9700949]
[1762794351918,0.00067861,105490.0,105480.0,0.95774497]
[1762794352269,0.00067861,105490.0,105480.0,0.30871583]
[1762794352469,0.00067861,105490.0,105480.0,0.93237497]
[1762794352470,0.07061861,105490.0,105480.0,0.93237497]
[1762794352684,0.07061861,105490.0,105480.0,0.97432497]
[1762794352685,0.02067861,105490.0,105480.0,0.97432497]
[1762794352887,0.00067861,105490.0,105480.0,0.63390435]
[1762794353088,0.00067861,105490.0,105480.0,0.63490435]
[1762794353488,0.00067861,105490.0,105480.0,0.65048435]
[1762794353744,0.00067861,105490.0,105480.0,0.63490435]
[1762794354748,0.00067861,105490.0,105480.0,0.65048435]
[1762794355098,0.00067861,105490.0,105480.0,0.97467287]
[1762794355300,0.01843322,105490.0,105480.0,0.97467287]
[1762794355538,0.01843322,105490.0,105480.0,0.63059648]
[1762794356400,0.02731045,105490.0,105480.0,0.63059648]
[1762794356809,0.02778207,105490.0,105480.0,0.61501648]
[1762794357008,0.01890484,105490.0,105480.0,0.61501648]
[1762794357210,0.02778206,105490.0,105480.0,0.61501648]
[1762794357567,0.03994206,105490.0,105480.0,0.29082796]
[1762794357776,0.03994206,105490.0,105480.0,0.61501648]
[1762794358426,0.01263162,105490.0,105480.0,0.61501648]
[1762794359256,0.02150853,105490.0,105480.0,0.61501648]
[1762794359800,0.00047162,105490.0,105480.0,0.61501648]
[1762794360145,0.00047162,105490.0,105480.0,0.954785]
[1762794360341,0.00047162,105490.0,105480.0,1.100285]
[1762794361313,0.00047162,105490.0,105480.0,1.423285]
[1762794361875,0.00047162,105490.0,105480.0,1.54471762]
[1762794362078,0.00047162,105490.0,105480.0,1.54371762]
[1762794362281,0.00047162,105490.0,105480.0,1.50753534]
[1762794362485,0.00047162,105490.0,105480.0,1.423285]
[1762794362694,0.00047162,105490.0,105480.0,1.50753534]
[1762794362868,0.00047162,105490.0,105480.0,1.51153534]
[1762794363282,0.00047162,105490.0,105480.0,1.51253534]
[1762794363439,0.00047162,105490.0,105480.0,1.51653534]
[1762794364603,0.00047162,105490.0,105480.0,1.51053534]
[1762794364829,0.00047162,105490.0,105480.0,1.51453534]
[1762794365482,0.00047162,105490.0,105480.0,1.429285]
[1762794365679,0.01263162,105490.0,105480.0,0.83322009]
[1762794366013,0.01263162,105490.0,105480.0,1.48159713]
[1762794366196,0.00047162,105490.0,105480.0,1.33609713]
[1762794366334,0.00047162,105490.0,105480.0,1.35167713]
[1762794370307,0.00047162,105490.0,105480.0,1.69322386]
[1762794370538,10.15,105500.0,105490.0,0.18959143]
[1762794370694,9.78970778,105500.0,105490.0,0.9730088]
[1762794370894,9.2518056,105500.0,105490.0,1.2960088]
[1762794371347,9.03420204,105500.0,105490.0,1.22819075]
[1762794371703,5.72890236,105500.0,105490.0,1.24019074]
[1762794371916,5.4080641,105500.0,105490.0,1.24119074]
[1762794372137,4.95736881,105500.0,105490.0,1.31223886]
[1762794372341,3.84861794,105500.0,105490.0,1.66329431]
[1762794372555,3.68231676,105500.0,105490.0,1.66829431]
[1762794372754,3.57769576,105500.0,105490.0,1.66829431]
[1762794372959,3.52675192,105500.0,105490.0,1.59560932]
[1762794373174,2.4284493,105500.0,105490.0,1.59560932]
[1762794373381,2.15952227,105500.0,105490.0,1.60160932]
[1762794373586,1.74969792,105500.0,105490.0,1.58160932]
[1762794373794,1.72124358,105500.0,105490.0,0.7042941]
[1762794373997,1.69278924,105500.0,105490.0,1.67685966]
[1762794374203,1.6643349,105500.0,105490.0,1.59760932]
[1762794374408,0.6393883,105500.0,105490.0,1.66517103]
[1762794374609,0.37741043,105500.0,105490.0,1.65917103]
[1762794374817,0.22190429,105500.0,105490.0,1.80467103]
[1762794375022,0.19344995,105500.0,105490.0,1.81167103]
[1762794375233,0.23119556,105570.0,105530.0,0.18950483]
[1762794375488,0.02113856,105570.0,105560.0,0.00578]
[1762794375686,0.02113856,105570.0,105560.0,0.02124]
[1762794375900,0.00014363,105570.0,105560.0,0.55047422]
[1762794376105,0.00014363,105570.0,105560.0,1.19766274]
[1762794376308,0.0002,105580.0,105560.0,1.2108928]
[1762794376509,0.0002,105580.0,105570.0,0.86886479]
[1762794377226,0.0002,105580.0,105570.0,0.22371782]
[1762794377374,0.0002,105580.0,105570.0,0.87209486]
[1762794378398,0.02473,105580.0,105570.0,0.32741859]
[1762794378588,0.03987,105580.0,105570.0,0.32841859]
[1762794379013,0.33681161,105590.0,105570.0,0.03211007]
[1762794379249,0.409377,105590.0,105570.0,0.5528547]
[1762794379454,0.09542015,105580.0,105570.0,0.7422981]
[1762794379656,0.23123035,105600.0,105570.0,0.7422981]
[1762794379867,0.33897425,105600.0,105580.0,0.01546]
[1762794380111,0.27356369,105600.0,105580.0,0.01546]
[1762794380309,0.07339061,105590.0,105580.0,0.01546]
[1762794380490,0.07339061,105590.0,105580.0,0.01869007]
[1762794380660,0.24648631,105600.0,105580.0,0.7060541]
[1762794380857,0.0319559,105600.0,105590.0,0.01242]
[1762794381126,0.01436,105600.0,105590.0,0.02788]
[1762794381334,0.01436,105600.0,105590.0,0.52581463]
[1762794381335,0.01236,105600.0,105590.0,0.52581463]
[1762794381685,0.01495095,105600.0,105590.0,0.71845657]
[1762794381900,0.00279095,105600.0,105590.0,0.77585657]
[1762794382305,0.00279095,105600.0,105590.0,0.22052194]
[1762794382532,0.00279095,105600.0,105590.0,0.77585657]
[1762794382956,0.00279095,105600.0,105590.0,0.5290447]
[1762794383160,0.00279095,105600.0,105590.0,0.03111007]
[1762794383995,0.23209488,105600.0,105590.0,0.01565007]
[1762794384205,0.30947488,105600.0,105590.0,0.00323007]
[1762794384610,0.80740951,105600.0,105590.0,0.00323007]
[1762794384788,0.12008095,105600.0,105590.0,0.00323007]
[1762794384996,0.30947488,105600.0,105590.0,0.00323007]
[1762794385206,0.04270095,105600.0,105590.0,0.02955007]
[1762794385407,0.00279095,105600.0,105590.0,1.13748657]
[1762794385636,0.00279095,105600.0,105590.0,0.63955194]
[1762794386518,0.00104129,105600.0,105590.0,0.63955194]
[1762794387265,0.00104129,105600.0,105590.0,0.58215194]
[1762794387484,0.00104129,105600.0,105590.0,0.63955194]
[1762794388358,0.00104129,105600.0,105590.0,0.58215194]
[1762794388566,0.04095129,105600.0,105590.0,0.35255007]
[1762794388761,0.04095129,105600.0,105590.0,0.54196194]
[1762794388975,0.04095129,105600.0,105590.0,0.61235641]
[1762794389545,0.09833129,105600.0,105590.0,0.58603641]
[1762794389944,0.04095129,105600.0,105590.0,0.42294454]
[1762794390302,0.00104129,105600.0,105590.0,0.35255007]
[1762794390738,0.19043522,105600.0,105590.0,0.35255007]
[1762794390891,0.28772522,105600.0,105590.0,0.00323007]
[1762794391067,0.39823158,105600.0,105590.0,0.00323007]
[1762794392144,0.18883765,105600.0,105590.0,0.00323007]
[1762794392294,0.20883765,105600.0,105590.0,0.00323007]
[1762794392498,0.37823158,105600.0,105590.0,0.00323007]
[1762794393323,0.18883765,105600.0,105590.0,0.00323007]
[1762794393530,0.00104129,105600.0,105590.0,0.02955007]
[1762794393729,0.04095129,105600.0,105590.0,0.21896194]
[1762794393886,0.13145765,105600.0,105590.0,0.21896194]
[1762794394118,0.00104129,105600.0,105590.0,0.25915194]
[1762794394660,4.129e-05,105600.0,105590.0,0.25915194]
[1762794395054,4.129e-05,105600.0,105590.0,0.81448657]
[1762794395477,4.129e-05,105600.0,105590.0,0.63955194]
[1762794396952,4.129e-05,105600.0,105590.0,0.71123909]
[1762794398362,0.09729,105600.0,105590.0,0.39791722]
[1762794398764,0.09729,105600.0,105590.0,0.58732909]
[1762794399142,0.03991,105600.0,105590.0,0.61364909]
[1762794399325,0.09729,105600.0,105590.0,0.61364909]
[1762794399474,0.09729,105600.0,105590.0,0.42423722]
[1762794399691,0.03991,105600.0,105590.0,0.61364909]
[1762794400311,0.05757374,105600.0,105590.0,0.61364909]
[1762794400716,0.05757343,105600.0,105590.0,0.61364909]
[1762794401245,0.30434736,105600.0,105590.0,0.42423722]
[1762794401442,0.11495343,105600.0,105590.0,0.42423722]
[1762794401581,0.30434736,105600.0,105590.0,0.39791722]
[1762794401789,0.11495343,105600.0,105590.0,0.58732909]
[1762794402026,0.12379305,105600.0,105590.0,0.58732909]
[1762794402650,0.31318698,105600.0,105590.0,0.39791722]
[1762794403065,0.12379305,105600.0,105590.0,0.32623007]
[1762794403266,0.33318698,105600.0,105590.0,0.32623007]
[1762794404188,0.33318698,105600.0,105590.0,0.00323007]
[1762794406258,0.42369334,105600.0,105590.0,0.00323007]
[1762794407809,0.4562641,105600.0,105590.0,0.00323007]
[1762794408011,0.42369334,105600.0,105590.0,0.00323007]
[1762794408569,0.92162797,105600.0,105590.0,0.00323007]
[1762794408733,0.73223404,105600.0,105590.0,0.00323007]
[1762794408902,0.42369334,105600.0,105590.0,0.00323007]
[1762794409106,0.12379305,105600.0,105590.0,0.00323007]
[1762794409376,0.14379305,105600.0,105590.0,0.19264194]
[1762794411112,0.12379305,105600.0,105590.0,0.19264194]
[1762794411511,0.31318698,105600.0,105590.0,0.00323007]
[1762794411724,0.40369334,105600.0,105590.0,0.00323007]
[1762794411931,0.21429941,105600.0,105590.0,0.00323007]
[1762794412133,0.12379305,105600.0,105590.0,0.19264194]
[1762794412484,0.12379305,105600.0,105590.0,0.00323007]
[1762794412852,0.12379305,105600.0,105590.0,0.19264194]
[1762794413667,0.21429941,105600.0,105590.0,0.00323007]
[1762794414192,0.40369334,105600.0,105590.0,0.00323007]
[1762794414688,0.42369334,105600.0,105590.0,0.00323007]
[1762794414887,0.81720014,105600.0,105590.0,0.00323007]
[1762794415093,0.72669378,105600.0,105590.0,0.00323007]
[1762794415294,0.35899698,105600.0,105590.0,0.00323007]
[1762794415465,0.44950334,105600.0,105590.0,0.00323007]
[1762794416090,0.81720014,105600.0,105590.0,0.00323007]
[1762794416460,0.8495927,105600.0,105590.0,0.00323007]
[1762794418370,0.8467518,105600.0,105590.0,0.00323007]
[1762794418808,0.83791218,105600.0,105590.0,0.00323007]
[1762794418984,0.84678708,105600.0,105590.0,0.00323007]
[1762794419603,1.19448388,105600.0,105590.0,0.00323007]
[1762794419787,1.25066616,105600.0,105590.0,0.00323007]
[1762794420008,0.51527256,105600.0,105590.0,0.00323007]
[1762794420174,0.8505768,105600.0,105590.0,0.00323007]
[1762794420824,0.48396635,105600.0,105590.0,0.00323007]
[1762794421031,0.44778407,105600.0,105590.0,0.00323007]
[1762794421233,0.25839014,105600.0,105590.0,0.00323007]
[1762794421640,0.44778407,105600.0,105590.0,0.00323007]
[1762794423124,0.35727771,105600.0,105590.0,0.00323007]
[1762794423330,0.34840281,105600.0,105590.0,0.00323007]
[1762794423557,0.43890917,105600.0,105590.0,0.00323007]
[1762794423878,0.24951524,105600.0,105590.0,0.00323007]
[1762794424083,0.24951524,105600.0,105590.0,0.19264194]
[1762794424332,0.24951524,105600.0,105590.0,0.00323007]
[1762794424539,0.24951524,105600.0,105590.0,0.00125619]
[1762794424874,0.24951524,105600.0,105590.0,0.62734806]
[1762794424875,0.01874978,105600.0,105590.0,0.62734806]
[1762794425077,0.001,105600.0,105590.0,1.06260657]
[1762794425213,0.001,105600.0,105590.0,0.99504486]
[1762794425415,0.001,105600.0,105590.0,1.0802952]
[1762794425793,0.05391,105620.0,105600.0,0.1893907]
[1762794425996,0.05438852,105620.0,105600.0,0.67963567]
[1762794426206,0.24374779,105620.0,105600.0,0.67963567]
[1762794426626,0.05438852,105620.0,105600.0,0.67963567]
[1762794426832,0.05438852,105620.0,105610.0,0.189376]
[1762794427043,0.05438852,105620.0,105600.0,0.67963567]
[1762794427250,0.24374825,105620.0,105600.0,0.75104615]
[1762794428230,0.02581,105610.0,105600.0,0.82956545]
[1762794428439,0.06173,105610.0,105600.0,0.39441048]